{"text_format":"1","workbook":"xlsx","n_sheets":4,"sheets":["A-Instructions","B-Annexe de l'équipe","C-Budget","Data validation"],"not_rendered":{"charts":0,"images":4,"macros":0,"external_links":0,"defined_names":3,"comments":0,"pivot_tables":0},"unopened":[],"bounds":{"document_bytes":16777216,"sheet_cells":100000,"rows_first":2000,"rows_last":500,"rows_between":2000,"halvings":0,"cell_chars":16384,"cell_head_chars":4096},"cells_cut":0,"cells_raw":0,"read":"whole","date_system":"1900"}

{"sheet":"A-Instructions","index":0,"n_rows":58,"n_cols":3,"rows_kept":58,"cut":false,"hidden":false,"merged":[[31,2,31,15],[52,1,52,15],[56,2,56,15],[57,2,57,15],[43,1,44,15],[1,1,1,15],[2,1,2,15],[3,1,5,15],[54,1,55,15],[18,2,18,15],[50,1,50,15],[19,2,19,15],[20,2,20,15],[34,2,34,15],[35,2,35,15],[11,1,11,15],[46,1,46,15]]}
[null,"v202309"]
[null,"Fonds d’innovation stratégique : subventions pour Cultiver"]
[null,"Instructions pour remplir les onglets de l'Annexe de l'équipe et du Budget"]
[null,"Le formulaire de budget est conçu pour un large éventail d'activités. Le formulaire contient un certain nombre de lignes vides que vous pouvez utiliser pour préciser les dépenses qui s'appliquent à votre projet. Veuillez inscrire le montant de la dépense (sans taxes) et ajouter une note au budget explicant ce montant."]
[]
[]
[]
[null,"Veuillez noter qu'il y a deux onglets au bas de la page – Annexe de l'équipe et Budget :"]
[]
[]
[]
[null,"Vous devez remplir ces deux onglets. Veuillez commencer par l'onglet Annexe de l'équipe. Les informations que vous fournissez dans cet onglet seront utilisées dans l'onglet Budget."]
[null,"Lorsque vous cliquez sur « enregistrer », tous les onglets sont sauvegardés en même temps."]
[null,"Lorsque vous téléversez le document pour le joindre à votre formulaire de demande, tous les onglets sont transférés ensemble."]
[]
[null,"1. Enregistrez le formulaire sur votre ordinateur. Vous pouvez l'enregistrer sous un nom différent."]
[]
[null,"2. Remplissez d'abord l'onglet « Annexe équipe ». (La colonne « Titre du poste » fourni dans cet onglet remplira automatiquement le formulaire de budget)"]
[null,null," - Énumérez les noms de toutes les personnes travaillant sur votre projet en indiquant le titre de leur poste et leur contribution au projet."]
[null,null," - Remplissez toutes les colonnes du formulaire, en fournissant des informations supplémentaires si nécessaire."]
[null,null," - Insérez des lignes si nécessaire au-dessus de la ligne indiquée :"]
[]
[]
[]
[]
[]
[]
[]
[]
[]
[null,"3. Remplissez l’onglet intitulé « Budget »."]
[null,null," - Remplissez chaque section relative à votre projet avec les coûts admissibles seulement et fournissez une justification dans la section\n   « Notes au budget »."]
[null,null," - Veuillez indiquer dans les notes au budget si la dépense doit être financée par la subvention du Conseil des arts."]
[null,null," - Si vous incluez des revenus en nature ou autres, veuillez indiquer dans les notes au budget la ligne des coûts de projet à laquelle elle correspond."]
[null,null," - Insérez des lignes si nécessaire au-dessus de la ligne indiquée."]
[null,null," - Formatez les lignes insérées en glissant le symbole + de la ligne précédente une ligne vers le bas, afin de copier le formatage de la ligne précédente :"]
[]
[]
[]
[null,"4. N'oubliez pas d'enregistrer à nouveau le document sur votre ordinateur."]
[]
[null,"5. Retournez au portail du Conseil des arts et téléversez le document pour le joindre à votre demande."]
[]
[null,"Si votre demande est retenue, vous pourrez utiliser la colonne « Mise à jour » pour fournir vos budgets révisés si vous soumettiez un Rapport de mise à jour et mettre à jour les notes budgétaires au besoin."]
[]
[]
[null,"Lorsque votre projet sera complété, vous utiliserez la colonne « Montant réel » lorsque vous soumettrez un Rapport final et mettrez à jour les notes budgétaires au besoin."]
[]
[null,"Soutien à l'accès"]
[]
[null,"Si votre Profil de candidat validé dans le portail comprend l’auto-identification comme personne Sourde ou vivant avec un handicap ou une maladie mentale, un groupe ou un organisme artistique Sourd et handicapé, ou un organisme ayant un profil validé en tant que groupe ou organisme ayant pour mandat de soutenir les artistes sourds, handicapés ou atteints d’une maladie mentale, vous verrez cette option dans la section Fonds stratégiques de vos programmes disponibles."]
[]
[null,"Si vous êtes admissible, vous ne pouvez présenter une demande de Soutien à l’accès que si votre demande de subventions est retenue et vous devez faire votre demande dans les 90 jours suivant la réception de vos résultats."]
[]
[null,"Si vous recevez du Soutien à l'accès pour ce projet, vous devez inclure le montant accordé et les coûts qu’il a financés dans les colonnes Mise à jour ou Montant réel du budget lorsque vous soumettez la mise à jour de votre projet ou le rapport final :"]
[]
[null,null," - Inscrivez à la ligne 46 les coûts des mesures de soutien et des services liés au handicap dont ont besoin par les artistes et les professionnels des arts qui participent au projet. Inscrivez seulement ici les coûts qui seront couverts par votre subvention de Soutien à l’accès. Les coûts liés à l’accessibilité inclus dans votre demande de subvention doivent être inscrits sous Coûts du projet."]
[null,null," - Inscrivez le montant du Soutien à l’accès reçu à la ligne 102 dans les colonnes Mise à jour et Montant réel du budget."]

{"sheet":"B-Annexe de l'équipe","index":1,"n_rows":19,"n_cols":6,"rows_kept":19,"cut":false,"hidden":false,"merged":[[1,2,1,5],[3,2,3,5],[5,1,6,1]]}
[null,null,{"$f":"'A-Instructions'!B1","v":"v202309"}]
[null,null,"Fonds d’innovation stratégique : subventions pour Cultiver – Annexe de l'équipe"]
[]
[null,null,"Veuillez remplir le tableau ci-dessous pour énumérer tous les membres de l’équipe qui travaillent sur votre projet et leur rôle dans le projet."]
[]
[null,null,"Nom du membre de l’équipe","Titre du poste","Organisme","Principales contributions au projet "]
[null,null,"(si disponible)","(à utiliser dans le formulaire de budget)","(le cas échéant)"]
[null,null,null,"Cliquez ici pour sélectionner"]
[null,1]
[null,2]
[null,3]
[null,4]
[null,5]
[null,6]
[null,7]
[null,8]
[null,9]
[null,10]
[null,"Insérez des lignes si nécessaire au-dessus de cette ligne"]

{"sheet":"C-Budget","index":2,"n_rows":147,"n_cols":9,"rows_kept":147,"cut":false,"hidden":false,"merged":[[65,1,65,3],[78,1,78,3],[144,1,146,1],[45,1,45,3],[12,1,13,8],[32,1,32,3],[33,1,33,3],[34,1,34,3],[43,1,43,3],[38,1,38,3],[39,1,39,3],[36,1,36,3],[41,1,41,3],[42,1,42,3],[22,1,22,3],[23,1,23,3],[46,1,46,3],[51,1,51,3],[50,1,50,3],[49,1,49,8],[44,1,44,3],[48,1,48,8],[88,1,88,3],[129,1,129,8],[96,1,97,1],[87,1,87,3],[55,1,55,3],[96,2,96,4],[120,1,120,8],[96,8,97,8],[103,7,105,7],[90,1,90,3],[91,1,91,3],[89,1,89,3],[100,8,101,8],[99,1,99,8],[94,1,94,3],[74,1,74,8],[54,1,54,3],[58,1,58,3],[57,1,57,3],[86,1,86,8],[80,1,80,3],[69,1,69,3],[68,1,68,3],[76,1,76,3],[77,1,77,3],[79,1,79,3],[70,1,70,3],[83,1,83,3],[75,1,75,3],[82,1,82,3],[56,1,56,3],[73,1,73,8],[15,1,15,8],[16,1,16,3],[35,1,35,3],[37,1,37,3],[31,1,31,8],[27,1,27,3],[26,1,26,3],[28,1,28,3],[30,1,30,8],[17,1,17,3],[18,1,18,3],[19,1,19,3],[20,1,20,3],[21,1,21,3],[24,1,24,3],[25,1,25,3],[1,1,1,8],[14,1,14,8],[5,1,5,3],[6,1,9,3],[11,2,11,4],[11,5,11,8],[3,1,3,8],[6,8,9,8],[6,7,9,7],[81,1,81,3],[66,1,66,3],[67,1,67,3],[40,1,40,3],[131,7,136,7],[122,7,127,7],[115,7,118,7],[111,7,113,7],[107,7,109,7],[60,1,60,8],[61,1,61,8],[62,1,62,3],[63,1,63,3],[64,1,64,3],[52,1,52,3],[53,1,53,3]]}
[null,{"$f":"'A-Instructions'!B1","v":"v202309"}]
[null,"IMPORTANT : Lisez les instructions et remplissez d'abord l'onglet Annexe équipe"]
[]
[null,"Fonds d’innovation stratégique : subventions pour Cultiver – Budget "]
[]
[null,"Remplissez les lignes ci-dessous qui se rapportent à votre projet\n(ne pas inclure les taxes de vente)",null,null,"Budget","Mise à jour\n(le cas échéant)","Montant réel","Le coût est-il inclus dans cette subvention?\nIndiquez oui, non ou en partie","Notes au budget\n(requis)"]
[null,"Dates du projet\n(doit refléter votre plan de travail/échéancier)\n",null,null,"Date de début","Date de début","Date de début","Si oui ou en partie, fournir des détails dans les notes au budget"]
[null,null,null,null,"jj-mmm-aaaa","jj-mmm-aaaa","jj-mmm-aaaa"]
[null,null,null,null,"Date de fin ","Date de fin","Date de fin "]
[null,null,null,null,"jj-mmm-aaaa","jj-mmm-aaaa","jj-mmm-aaaa"]
[]
[null,"Dépenses du projet"]
[]
[]
[null,"Honoraires professionnels (vous devez fournir des détails dans les notes au budget)"]
[null,"Honoraires et frais versés : p. ex., à des artistes, experts, formateurs, animateurs, gestionnaires de projet, consultants, Aînés autochtones et des dirigeants communautaires, ainsi qu'à d'autres professionnels directement impliqués dans la réalisation de votre projet"]
[null,"Titre du poste (sélectionnez dans la liste déroulante remplie par l'Annexe de l'équipe)",null,null,"Frais (sans taxes)","Frais (sans taxes)","Frais (sans taxes)","oui/non/en partie","Tarifs, heures, période de temps"]
[null,"Cliquez ici pour sélectionner"]
[null,"Cliquez ici pour sélectionner"]
[null,"Cliquez ici pour sélectionner"]
[null,"Cliquez ici pour sélectionner"]
[null,"Cliquez ici pour sélectionner"]
[null,"Cliquez ici pour sélectionner"]
[null,"Cliquez ici pour sélectionner"]
[null,"Cliquez ici pour sélectionner"]
[null,"Cliquez ici pour sélectionner"]
[null,"Cliquez ici pour sélectionner"]
[null,"Insérez des lignes si nécessaire au-dessus de cette ligne"]
[null,"Sous-total – Honoraires professionnels",null,null,{"$f":"SUM(E17:E28)","v":0},{"$f":"SUM(F17:F28)","v":0},{"$f":"SUM(G17:G28)","v":0}]
[]
[null,"Coûts du projet (vous devez fournir des détails dans les notes au budget)"]
[null,"Toutes les dépenses (autres que les honoraires professionnels ci-dessus) liées au projet qui ne sont pas énumérées dans les autres sections de ce budget : p. ex., coûts d'accessibilité pour les participants, cadeaux/honoraires pour les Aînés autochtones, coûts associés aux cérémonies culturelles, location d'équipement, frais de licence de logiciels, coûts de recherche, coûts de partage des résultats/de transfert des connaissances, etc."]
[null,"Article ",null,null,"Coûts (sans taxes)","Coûts (sans taxes)","Coûts (sans taxes)","oui/non/en partie","Détails"]
[]
[]
[]
[]
[]
[]
[]
[]
[]
[]
[]
[]
[null,"Coûts d’accessibilité financés par les fonds de Soutien à l’accès   (voir les instructions)"]
[null,"Sous-total – Coûts du projet",null,null,{"$f":"SUM(E34:E46)","v":0},{"$f":"SUM(F34:F46)","v":0},{"$f":"SUM(G33:G46)","v":0}]
[]
[null,"Frais de déplacement (incluant les indemnités journalières et l'hébergement – maximum 150 $/personne/jour)"]
[null,"Veuillez fournir des détails dans les notes au budget : p. ex., but, durée, origine et destination, etc."]
[null,"Titre du poste",null,null,"Coûts (sans taxes)","Coûts (sans taxes)","Coûts (sans taxes)","oui/non/en partie","Détails"]
[]
[]
[]
[]
[]
[]
[null,"Insérez des lignes si nécessaire au-dessus de cette ligne"]
[null,"Sous-total – Frais de déplacement",null,null,{"$f":"SUM(E51:E58)","v":0},{"$f":"SUM(F51:F58)","v":0},{"$f":"SUM(G51:G58)","v":0}]
[]
[null,"Coûts et les frais liés à une formation artistique professionnelle, à la création de contenu, à la création artistique et à la production médiatique"]
[null,"Les coûts doivent être justifiés dans les notes au budget : p. ex., frais d’artiste, technicien, matériel, location d’équipement spécifique, etc."]
[null,"Article ",null,null,"Coûts (sans taxes)","Coûts (sans taxes)","Coûts (sans taxes)","oui/non/en partie","Détails"]
[]
[]
[]
[]
[]
[null,"Sous-total – Coûts de création de contenu etc.",null,null,{"$f":"SUM(E63:E68)","v":0},{"$f":"SUM(F63:F68)","v":0},{"$f":"SUM(G63:G68)","v":0}]
[null,"Indiquez le montant à financer par le CAC (Jusqu’à 20 % du montant demandé)"]
[null,"% de la demande de subvention totale ",null,null,{"$f":"IFERROR((E70/E101),\"\")","v":""},{"$f":"IFERROR((F70/F101),\"\")","v":""},{"$f":"IFERROR((G70/G101),\"\")","v":""}]
[null,null,null,null,"% du montant demandé","% du montant accordé ","% du montant accordé "]
[]
[null,"Dépenses en immobilisations"]
[null,"Les coûts doivent être justifiés dans les notes au budget: p. ex., coûts d’achat d’équipement et de logiciels capitalisés"]
[null,"Article ",null,null,"Coûts (sans taxes)","Coûts (sans taxes)","Coûts (sans taxes)","oui/non/en partie","Détails"]
[]
[]
[]
[]
[]
[null,"Sous-total – Coûts des dépenses en immobilisations",null,null,{"$f":"SUM(E76:E81)","v":0},{"$f":"SUM(F76:F81)","v":0},{"$f":"SUM(G76:G81)","v":0}]
[null,"Indiquez le montant à financer par le CAC (Jusqu’à 15 % du montant demandé)"]
[null,"% de la demande de subvention totale ",null,null,{"$f":"IFERROR((E83/E101),\"\")","v":""},{"$f":"IFERROR((F83/F101),\"\")","v":""},{"$f":"IFERROR((G83/G101),\"\")","v":""}]
[null,null,null,null,"% du montant demandé","% du montant accordé ","% du montant accordé "]
[]
[null,"Coûts d'administration du projet"]
[null,"Comprends : Comptabilité, assurance, tenue de livres, rapports, permis, etc.",null,null,"Coûts (sans taxes)","Coûts (sans taxes)","Coûts (sans taxes)","oui/non/en partie"]
[null,"Coûts d'administration générale"]
[null,"Sous-total – Administration",null,null,{"$f":"SUM(E89:E89)","v":0},{"$f":"SUM(F89:F89)","v":0},{"$f":"SUM(G89:G89)","v":0}]
[null,"Indiquez le montant à financer par le CAC (Jusqu’à 15 % du montant demandé)"]
[null,"% de la demande de subvention totale",null,null,{"$f":"IFERROR((E91/E101),\"\")","v":""},{"$f":"IFERROR((F91/F101),\"\")","v":""},{"$f":"IFERROR((G91/G101),\"\")","v":""}]
[null,null,null,null,"% du montant demandé","% du montant accordé ","% du montant accordé "]
[]
[null,"Total des coûts admissibles",null,null,{"$f":"SUM(E29,E47,E59,E69,E82,E90)","v":0},{"$f":"SUM(F29,F47,F59,F69,F82,F90)","v":0},0]
[]
[null,"Revenus du projet","Budget",null,null,"Mise à jour\n(le cas échéant)","Montant réel",null,"Notes au budget\n(requis)"]
[null,null,"Confirmé","En attente","Total","Total","Total"]
[]
[null,"Revenus du secteur public **À l'exception des subventions de Soutien à l’accès pour les candidats admissibles, les autres subventions du Conseil des arts ne peuvent pas être utilisées comme revenu pour ce projet.**"]
[null,"Subvention pour cette demande\nJusqu'à concurrence de 250 000 $",null,null,{"$f":"D101","v":0}]
[null,"Soutien à l'accès en attente (soumettre une demande de Soutien à l’accès si elle est admissible et si cette demande est retenue)\n(voir les instructions)",null,null,{"$f":"D102","v":0}]
[null,"Autre subvention fédérale"]
[null,null,null,null,{"$f":"SUM(C104:D104)","v":0}]
[null,null,null,null,{"$f":"SUM(C105:D105)","v":0}]
[null,null,null,null,0]
[null,"Subvention provinciale ou territoriale"]
[null,null,null,null,{"$f":"SUM(C108:D108)","v":0}]
[null,null,null,null,0]
[null,null,null,null,0]
[null,"Subvention municipale ou régionale"]
[null,null,null,null,{"$f":"SUM(C112:D112)","v":0}]
[null,null,null,null,{"$f":"SUM(C113:D113)","v":0}]
[null,null,null,null,0]
[null,"Autres revenus du secteur public"]
[null,null,null,null,{"$f":"SUM(C116:D116)","v":0}]
[null,null,null,null,{"$f":"SUM(C117:D117)","v":0}]
[null,null,null,null,{"$f":"SUM(C118:D118)","v":0}]
[null,"Sous-total – Revenus du secteur public",{"$f":"SUM(C101:C118)","v":0},{"$f":"SUM(D101:D118)","v":0},{"$f":"SUM(C119:D119)","v":0},{"$f":"SUM(F101:F118)","v":0},{"$f":"SUM(G101:G118)","v":0}]
[]
[null,"Services et soutien en nature"]
[null,"Sources","Confirmé","En attente",null,null,null,null,"Indiquez la ligne de coûts du projet à laquelle ce montant s’applique"]
[null,null,null,null,{"$f":"SUM(C123:D123)","v":0}]
[null,null,null,null,0]
[null,null,null,null,0]
[null,null,null,null,0]
[null,null,null,null,0]
[null,"Sous-total – Soutien en nature",{"$f":"SUM(C122:C127)","v":0},{"$f":"SUM(D122:D127)","v":0},{"$f":"SUM(C128:D128)","v":0},{"$f":"SUM(F122:F127)","v":0},{"$f":"SUM(G122:G127)","v":0}]
[]
[null,"Autres revenus (incluant la contribution du demandeur)"]
[null,"Sources","Confirmé","En attente",null,null,null,null,"Indiquez la ligne de coûts du projet à laquelle ce montant s’applique"]
[null,null,null,null,{"$f":"SUM(C132:D132)","v":0}]
[null,null,null,null,{"$f":"SUM(C133:D133)","v":0}]
[null,null,null,null,0]
[null,null,null,null,0]
[null,null,null,null,0]
[null,"Sous-total – Autres revenus",{"$f":"SUM(C131:C136)","v":0},{"$f":"SUM(D131:D136)","v":0},{"$f":"SUM(C137:D137)","v":0},{"$f":"SUM(F131:F136)","v":0},{"$f":"SUM(G131:G136)","v":0}]
[]
[null,"Total des revenus du projet\n(doit être égal au Total des coûts admissibles)",null,null,{"$f":"SUM(E119,E128,E137)","v":0},{"$f":"SUM(F119,F128,F137)","v":0},{"$f":"SUM(G119,G128,G137)","v":0}]
[]
[null,"Total des coûts admissibles du projet\n(doit être égal au Total des revenus du projet)",null,null,{"$f":"E95","v":0},{"$f":"F95","v":0},{"$f":"G95","v":0}]
[]
[null,"Excédent (déficit)\nVotre budget doit être équilibré - si ce champ est rouge, veuillez examiner votre budget et apporter les ajustements nécessaires",null,null,{"$f":"E139-E141","v":0},{"$f":"F139-F141","v":0},{"$f":"G139-G141","v":0}]
[]
[null,"Les dépenses sur les lignes suivantes sont-elles inférieures au % maximum basé sur la demande de subvention totale?","Ligne 70",{"$f":"IF(AND(OR(E$71<=20.49%,E$71=\"\"),OR(F$71<=20.49%,F$71=\"\"),OR(G$71<=20.49%,G$71=\"\")),\"Oui\",\"Besoin de réviser\")","v":"Oui"}]
[null,null,"Ligne 83",{"$f":"IF(AND(OR(E$84<=15.49%,E$84=\"\"),OR(F$84<=15.49%,F$84=\"\"),OR(G$84<=15.49%,G$84=\"\")),\"Oui\",\"Besoin de réviser\")","v":"Oui"}]
[null,null,"Ligne 91",{"$f":"IF(AND(OR(E$92<=15.49%,E$92=\"\"),OR(F$92<=15.49%,F$92=\"\"),OR(G$92<=15.49%,G$92=\"\")),\"Oui\",\"Besoin de réviser\")","v":"Oui"}]

{"sheet":"Data validation","index":3,"n_rows":1,"n_cols":1,"rows_kept":1,"cut":false,"hidden":true,"merged":[]}
[{"$f":"'A-Instructions'!B1","v":"v202309"}]